bitfinex/quotes_BTCUSD_20251011
["timestamp","ask_amount","ask_price","bid_price","bid_amount"]
[1760173424923,0.21504038,111760.0,111740.0,0.27276705]
[1760173425120,0.17900039,111750.0,111740.0,0.18006054]
[1760173425545,0.18791069,111760.0,111740.0,0.35904747]
[1760173425771,0.18791069,111760.0,111750.0,0.03358]
[1760173425936,0.18791069,111760.0,111750.0,0.09268]
[1760173426782,0.23058648,111770.0,111750.0,0.09268]
[1760173426783,0.22164062,111770.0,111750.0,0.35898091]
[1760173427042,0.0002,111770.0,111760.0,0.2126849]
[1760173427269,0.0002,111770.0,111760.0,0.3591149]
[1760173427492,0.17913889,111770.0,111760.0,0.3591149]
[1760173427970,0.0002,111770.0,111760.0,0.3591149]
[1760173428436,0.0002,111770.0,111760.0,0.48926675]
[1760173428665,0.0002,111770.0,111760.0,0.54071132]
[1760173428883,0.0002,111770.0,111760.0,0.56571131]
[1760173429097,0.0002,111770.0,111760.0,0.56171131]
[1760173430443,0.0002,111770.0,111760.0,0.56571131]
[1760173430656,0.18645275,111790.0,111770.0,0.17893889]
[1760173430871,0.18645275,111790.0,111780.0,0.07447]
[1760173431293,0.18171191,111790.0,111780.0,0.07447]
[1760173432174,0.18171191,111790.0,111780.0,0.07852054]
[1760173432391,0.23943191,111790.0,111780.0,0.07852054]
[1760173432609,0.36614191,111790.0,111780.0,0.00405054]
[1760173433329,0.28193191,111790.0,111780.0,0.01942054]
[1760173433550,0.36614191,111790.0,111780.0,0.01942054]
[1760173434003,0.28193191,111790.0,111780.0,0.07852054]
[1760173434224,0.18171191,111790.0,111780.0,0.07852054]
[1760173434429,0.23969191,111790.0,111780.0,0.07852054]
[1760173434672,0.28219191,111790.0,111780.0,0.07852054]
[1760173436356,0.28219191,111790.0,111780.0,0.01942054]
[1760173436588,0.28219191,111790.0,111780.0,0.00405054]
[1760173436589,0.36453191,111790.0,111780.0,0.00405054]
[1760173437738,0.18171191,111790.0,111780.0,0.09658054]
[1760173437968,0.18637328,111790.0,111780.0,0.09658054]
[1760173438420,0.36650328,111790.0,111780.0,0.00405054]
[1760173438643,0.28416328,111790.0,111780.0,0.06300054]
[1760173438899,0.18637328,111790.0,111780.0,0.09658054]
[1760173439170,0.00466137,111790.0,111780.0,0.36190342]
[1760173441536,0.18356824,111790.0,111780.0,0.36190342]
[1760173441920,0.00466137,111790.0,111780.0,0.36190342]
[1760173442587,0.18356824,111790.0,111780.0,0.09658054]
[1760173442824,0.28135824,111790.0,111780.0,0.03763054]
[1760173443028,0.36369824,111790.0,111780.0,0.00405054]
[1760173443440,0.35496299,111790.0,111780.0,0.01225908]
[1760173444297,0.35496299,111790.0,111780.0,0.00405054]
[1760173444905,0.69496299,111790.0,111780.0,0.00405054]
[1760173445347,0.69963973,111790.0,111780.0,0.00405054]
[1760173445970,0.69963973,111790.0,111780.0,5.054e-05]
[1760173446420,0.69963973,111790.0,111780.0,0.00405054]
[1760173449195,0.57383973,111790.0,111780.0,0.06300054]
[1760173449398,0.57383973,111790.0,111780.0,0.10479269]
[1760173449566,0.57383973,111790.0,111780.0,0.09658054]
[1760173449771,0.22236687,111790.0,111780.0,0.09658054]
[1760173449975,0.2223538,111800.0,111780.0,0.18298054]
[1760173450132,0.5623538,111800.0,111790.0,0.03358]
[1760173450338,0.5623538,111800.0,111790.0,0.09253]
[1760173450604,0.5188938,111800.0,111790.0,0.09253]
[1760173450794,0.17890687,111790.0,111780.0,0.2125524]
[1760173450997,0.17890687,111790.0,111780.0,0.03363054]
[1760173451301,0.27669687,111790.0,111780.0,0.09558054]
[1760173451803,0.35903687,111790.0,111780.0,0.00305054]
[1760173452363,0.35803687,111790.0,111780.0,0.00305054]
[1760173452590,0.35803687,111790.0,111780.0,5.054e-05]
[1760173452802,0.27569687,111790.0,111780.0,5.054e-05]
[1760173453016,0.27569687,111790.0,111780.0,0.00405054]
[1760173453247,0.35803687,111790.0,111780.0,0.05149511]
[1760173453483,0.27569687,111790.0,111780.0,0.14402511]
[1760173453710,0.27569687,111790.0,111780.0,0.08507511]
[1760173453933,0.27569687,111790.0,111780.0,0.05149511]
[1760173453934,0.35803687,111790.0,111780.0,0.05149511]
[1760173454788,0.69803687,111790.0,111780.0,0.05149511]
[1760173454990,0.69803687,111790.0,111780.0,0.00405054]
[1760173455577,0.7027134,111790.0,111780.0,0.00405054]
[1760173455814,0.7328653,111790.0,111780.0,0.01325764]
[1760173456207,0.75978809,111790.0,111780.0,0.01325764]
[1760173456794,0.75978809,111790.0,111780.0,0.00925764]
[1760173457266,0.75978809,111790.0,111780.0,0.01225764]
[1760173457398,0.75978809,111790.0,111780.0,0.0040096]
[1760173457595,0.75978809,111790.0,111780.0,0.0010096]
[1760173458010,0.76078809,111790.0,111780.0,0.0010096]
[1760173459059,0.76078809,111790.0,111780.0,0.0040096]
[1760173459259,0.76078809,111790.0,111780.0,0.01225971]
[1760173461390,0.73063619,111790.0,111780.0,0.01225971]
[1760173461811,0.7037134,111790.0,111780.0,0.01225971]
[1760173463390,0.7338653,111790.0,111780.0,0.01225971]
[1760173463742,0.7338653,111790.0,111780.0,1e-08]
[1760173464189,0.75886529,111790.0,111780.0,1e-08]
[1760173464393,0.17898693,111740.0,111730.0,0.07162362]
[1760173464571,0.35911693,111740.0,111730.0,0.07213014]
[1760173464951,0.35911693,111740.0,111730.0,0.14574014]
[1760173464952,0.27677693,111740.0,111730.0,0.14574014]
[1760173465361,0.17897091,111750.0,111740.0,0.17898693]
[1760173465731,0.23138854,111760.0,111740.0,0.35791693]
[1760173465948,0.57138854,111760.0,111750.0,0.03067]
[1760173466157,0.23138854,111760.0,111750.0,0.08962]
[1760173466299,0.57138854,111760.0,111750.0,0.08962]
[1760173466534,0.5189549,111760.0,111750.0,0.17393]
[1760173467270,0.04346,111770.0,111750.0,0.35590091]
[1760173467429,0.22240425,111770.0,111760.0,0.03373]
[1760173467631,0.22240425,111770.0,111760.0,0.08766]
[1760173468062,0.51894425,111770.0,111760.0,0.08766]
[1760173468291,0.17894425,111770.0,111760.0,0.08766]
[1760173468494,0.51892892,111780.0,111770.0,0.17893889]
[1760173468695,0.17892288,111780.0,111770.0,0.1529]
[1760173468848,0.17892288,111780.0,111770.0,0.06859]
[1760173469063,0.57617288,111780.0,111770.0,0.06859]
[1760173469258,0.23617288,111780.0,111770.0,0.06859]
[1760173469463,0.57617288,111780.0,111770.0,0.06859]
[1760173469667,0.57617288,111780.0,111770.0,0.0686804]
[1760173469869,0.51892288,111780.0,111770.0,0.0686804]
[1760173470276,0.23594779,111790.0,111770.0,0.33192929]
[1760173470475,0.17986995,111790.0,111780.0,0.03358]
[1760173470846,0.51986995,111790.0,111780.0,0.03358]
[1760173471094,0.51986995,111790.0,111780.0,0.08751]
[1760173471226,0.57711995,111790.0,111780.0,0.08751]
[1760173471576,0.17892288,111780.0,111770.0,0.06519497]
[1760173471874,0.17892288,111780.0,111770.0,0.24113386]
[1760173472056,0.17892288,111780.0,111770.0,0.29806386]
[1760173472501,0.17892288,111780.0,111770.0,0.29506386]
[1760173472637,0.17892288,111780.0,111770.0,0.37937386]
[1760173472834,0.51986995,111790.0,111770.0,0.38237386]
[1760173473041,0.56094995,111790.0,111780.0,0.03358]
[1760173473242,0.51986995,111790.0,111780.0,0.08751]
[1760173473481,0.00095905,111790.0,111780.0,0.35074288]
[1760173473736,0.00095905,111790.0,111780.0,0.42833935]
[1760173473953,0.00095905,111790.0,111780.0,0.48089473]
[1760173474374,0.00095905,111790.0,111780.0,0.54409221]
[1760173474581,0.00095905,111790.0,111780.0,0.94409221]
[1760173475006,0.00095905,111790.0,111780.0,0.94509221]
[1760173476021,0.00095905,111790.0,111780.0,0.94909221]
[1760173476429,0.00095905,111790.0,111780.0,0.9740922]
[1760173476632,0.00095905,111790.0,111780.0,1.25089472]
[1760173476747,5.485e-05,111790.0,111780.0,1.33025059]
[1760173476947,5.485e-05,111790.0,111780.0,1.41978011]
[1760173477173,0.00028,111830.0,111820.0,0.20901078]
[1760173477373,0.00028,111830.0,111820.0,0.25813077]
[1760173477593,0.00028,111830.0,111820.0,0.39637077]
[1760173477994,0.00028,111830.0,111820.0,0.85939067]
[1760173478431,0.00028,111830.0,111820.0,0.95948102]
[1760173479125,0.00028,111830.0,111820.0,1.30448102]
[1760173479291,0.00028,111830.0,111820.0,1.51832801]
[1760173479640,0.00028,111830.0,111820.0,1.65596471]
[1760173479967,0.00028,111830.0,111820.0,1.63164723]
[1760173480173,0.00028,111830.0,111820.0,1.60576]
[1760173480385,0.00028,111830.0,111820.0,1.63264662]
[1760173481018,0.00028,111830.0,111820.0,1.63164662]
[1760173481241,0.00028,111830.0,111820.0,1.70131964]
[1760173481409,0.00028,111830.0,111820.0,1.55987174]
[1760173481632,0.00028,111830.0,111820.0,1.55487174]
[1760173481929,0.00028,111830.0,111820.0,1.52798512]
[1760173482138,0.00028,111830.0,111820.0,1.59566299]
[1760173482537,0.00028,111830.0,111820.0,1.59366299]
[1760173482721,0.00260902,111830.0,111820.0,1.493663]
[1760173482919,0.00260902,111830.0,111820.0,1.571663]
[1760173483119,0.00260902,111830.0,111820.0,1.59666299]
[1760173483325,0.00260902,111830.0,111820.0,1.53398512]
[1760173483511,0.00260902,111830.0,111820.0,1.5583026]
[1760173483715,0.00260902,111830.0,111820.0,1.61798047]
[1760173483906,0.00260902,111830.0,111820.0,1.61998047]
[1760173484306,0.00260902,111830.0,111820.0,1.5682626]
[1760173484522,0.00260902,111830.0,111820.0,1.61798047]
[1760173484779,0.00260902,111830.0,111820.0,1.5553026]
[1760173484956,0.00260902,111830.0,111820.0,1.5503026]
[1760173485164,0.00260902,111830.0,111820.0,1.61298047]
[1760173485367,0.38837734,111890.0,111880.0,0.17876296]
[1760173485368,0.34,111890.0,111880.0,0.17876296]
[1760173485575,0.34,111890.0,111880.0,0.34324296]
[1760173486088,0.51874698,111890.0,111880.0,0.34324296]
[1760173486276,0.178731,111900.0,111880.0,0.34324296]
[1760173486483,0.17923818,111900.0,111890.0,0.10794]
[1760173486702,0.00050718,111900.0,111890.0,0.029]
[1760173486911,0.51923818,111900.0,111890.0,0.34322698]
[1760173487114,0.34050718,111900.0,111890.0,0.34322698]
[1760173487262,0.51923818,111900.0,111890.0,0.16448]
[1760173487676,0.51923818,111900.0,111880.0,0.13299995]
[1760173487677,0.17874698,111890.0,111880.0,0.13299995]
[1760173487901,0.21818698,111890.0,111880.0,0.10399995]
[1760173488081,0.35611698,111890.0,111880.0,0.09999995]
[1760173488886,0.17879492,111860.0,111850.0,0.029]
[1760173489145,0.35616492,111860.0,111840.0,0.029]
[1760173489333,0.17882689,111840.0,111830.0,0.10062362]
[1760173489751,0.2182509,111850.0,111830.0,0.23610362]
[1760173489919,0.22717466,111860.0,111840.0,0.12899995]
[1760173490120,0.56717115,111870.0,111850.0,0.08643405]
[1760173490324,0.17879492,111860.0,111850.0,0.08554]
[1760173491155,0.17879492,111860.0,111850.0,0.08954]
[1760173491533,0.17879492,111860.0,111850.0,0.08554]
[1760173491740,0.17879492,111860.0,111850.0,0.08954]
[1760173492069,0.27175492,111860.0,111850.0,0.033]
[1760173492400,0.35616492,111860.0,111850.0,0.004]
[1760173492800,0.69616492,111860.0,111850.0,0.004]
[1760173495347,0.51882689,111840.0,111830.0,9.04e-05]
[1760173495542,0.55826689,111840.0,111830.0,9.04e-05]
[1760173495752,0.69619689,111840.0,111830.0,9.04e-05]
[1760173497495,0.17884288,111830.0,111820.0,0.00095869]
[1760173497657,0.17890687,111790.0,111770.0,0.09929362]
[1760173497862,0.17890687,111790.0,111770.0,0.09938487]
[1760173497863,0.17892288,111780.0,111770.0,0.09938487]
[1760173498090,0.27614288,111780.0,111770.0,0.09938487]
[1760173498636,0.22034288,111780.0,111770.0,0.08285125]
[1760173499282,0.27614288,111780.0,111770.0,9.125e-05]
[1760173499487,0.36222288,111780.0,111770.0,0.00409125]
[1760173499643,0.36222288,111780.0,111770.0,0.00509125]
[1760173499834,0.70222288,111780.0,111770.0,0.1040912]
[1760173501313,0.70222288,111780.0,111770.0,0.1010912]
[1760173501719,0.70222288,111780.0,111770.0,0.1050912]
[1760173505422,0.70222288,111780.0,111770.0,0.00509125]
[1760173505423,0.73237478,111780.0,111770.0,0.00509125]
[1760173506363,0.73237478,111780.0,111770.0,0.00109125]
[1760173506549,0.73237478,111780.0,111770.0,0.00409125]
[1760173507607,0.73237478,111780.0,111770.0,0.00309125]
[1760173508014,0.73337478,111780.0,111770.0,9.125e-05]
[1760173508562,0.73337478,111780.0,111770.0,0.00500378]
[1760173510220,0.70322288,111780.0,111770.0,0.00500378]
[1760173511217,0.73337478,111780.0,111770.0,0.00500378]
[1760173512390,0.17898693,111740.0,111730.0,0.07162362]
[1760173512590,0.17898693,111740.0,111730.0,0.07213014]
[1760173512591,0.70228693,111740.0,111730.0,0.07213014]
[1760173512796,0.48487337,111740.0,111730.0,0.07213014]
[1760173513016,0.6638603,111740.0,111730.0,0.00050652]
[1760173513275,0.6638603,111740.0,111730.0,0.00283789]
[1760173513783,0.6638603,111740.0,111730.0,0.10283784]
[1760173514153,0.6638603,111740.0,111730.0,0.10383784]
[1760173514591,0.6638603,111740.0,111730.0,0.10783784]
[1760173515293,0.34,111740.0,111730.0,0.46597079]
[1760173515489,0.51898693,111740.0,111730.0,0.28696784]
[1760173515620,0.22934851,111760.0,111730.0,0.46597079]
[1760173515819,0.18405587,111750.0,111740.0,0.10839]
[1760173516019,0.1789549,111760.0,111740.0,0.34246693]
[1760173516269,0.1789549,111760.0,111750.0,0.1263]
[1760173516534,0.31632823,111780.0,111760.0,0.17895431]
[1760173516535,0.18882823,111780.0,111760.0,0.17895431]
[1760173516740,0.18402089,111770.0,111760.0,0.12517]
[1760173516892,0.17893889,111770.0,111760.0,0.04099]
[1760173517087,0.1789549,111760.0,111750.0,0.04212]
[1760173517316,0.1789549,111760.0,111750.0,0.09721]
[1760173517534,0.2347549,111760.0,111750.0,0.04212]
[1760173517737,0.3208349,111760.0,111750.0,0.09999995]
[1760173517892,0.6608349,111760.0,111750.0,0.09999995]
[1760173518542,0.6608349,111760.0,111750.0,0.10499995]
[1760173520605,0.5747549,111760.0,111750.0,0.10499995]
[1760173520791,0.6608349,111760.0,111750.0,0.10499995]
[1760173521935,0.6608349,111760.0,111750.0,0.10616542]
[1760173523619,0.1789549,111760.0,111750.0,0.26964542]
[1760173523815,0.5189549,111760.0,111750.0,0.26964542]
[1760173524058,0.2347149,111760.0,111750.0,0.13037542]
[1760173524218,0.2347149,111760.0,111750.0,0.10616542]
[1760173524434,0.1789549,111760.0,111750.0,0.18546542]
[1760173524606,0.6608349,111760.0,111750.0,0.10616542]
[1760173526362,0.6688649,111760.0,111750.0,0.10616542]
[1760173526563,0.6663749,111760.0,111750.0,0.10616542]
[1760173526929,0.6663749,111760.0,111750.0,0.00616547]
[1760173527480,0.6663749,111760.0,111750.0,0.00216547]
[1760173527682,0.6663749,111760.0,111750.0,0.00416547]
[1760173529368,0.5827849,111760.0,111750.0,0.00416547]
[1760173529546,0.6663749,111760.0,111750.0,0.00416547]
[1760173530151,0.6663749,111760.0,111750.0,0.00116547]
[1760173530681,0.5827849,111760.0,111750.0,0.05794547]
[1760173530878,0.5827849,111760.0,111750.0,0.00416547]
[1760173531300,0.6663749,111760.0,111750.0,0.00416547]
[1760173532748,0.5827849,111760.0,111750.0,0.05794547]
[1760173532973,0.17893918,111770.0,111750.0,0.35821638]
[1760173533190,0.17893981,111770.0,111760.0,0.12017]
[1760173533405,0.55758981,111770.0,111760.0,0.04099]
[1760173533622,0.59054981,111770.0,111760.0,0.04099]
[1760173534520,0.51893981,111770.0,111760.0,0.09477]
[1760173534732,0.51893981,111770.0,111760.0,0.39977623]
[1760173534946,0.51893981,111770.0,111760.0,0.22082133]
[1760173535369,0.51893981,111770.0,111760.0,0.39977623]
[1760173535632,0.51893981,111770.0,111760.0,0.22382133]
[1760173535852,0.18882823,111780.0,111770.0,0.17893889]
[1760173536075,0.00095921,111780.0,111770.0,0.39776022]
[1760173536499,0.17988209,111780.0,111770.0,0.39776022]
[1760173537125,0.00095921,111780.0,111770.0,0.39789595]
[1760173537344,0.00095921,111780.0,111770.0,0.5008959]
[1760173537566,0.00095921,111780.0,111770.0,0.5018959]
[1760173537787,0.00095921,111780.0,111770.0,0.51470244]
[1760173538010,0.00095921,111780.0,111770.0,0.54885434]
[1760173539582,0.00095921,111780.0,111770.0,0.54785434]
[1760173539791,0.00095921,111780.0,111770.0,0.54885434]
[1760173540001,0.00095921,111780.0,111770.0,0.54485434]
[1760173540238,0.00095921,111780.0,111770.0,0.48217647]
[1760173540470,0.00095921,111780.0,111770.0,0.48617647]
[1760173540895,0.00095921,111780.0,111770.0,0.54485434]
[1760173541108,0.00095921,111780.0,111770.0,0.94485434]
[1760173541310,0.00095921,111780.0,111770.0,0.94885434]
[1760173541811,0.00095921,111780.0,111770.0,0.91117646]
[1760173542001,0.00095921,111780.0,111770.0,1.34070598]
[1760173542297,0.00095921,111780.0,111770.0,1.51948085]
[1760173542494,3.065e-05,111780.0,111770.0,1.51948085]
[1760173542698,3.065e-05,111780.0,111770.0,1.44070597]
[1760173542989,3.065e-05,111780.0,111770.0,1.43570597]
[1760173543229,3.065e-05,111780.0,111770.0,1.64635125]
[1760173543458,3.065e-05,111780.0,111770.0,1.65235125]
[1760173543672,3.065e-05,111780.0,111770.0,6.70135125]
[1760173543882,3.065e-05,111780.0,111770.0,6.72066873]
[1760173544101,3.065e-05,111780.0,111770.0,6.72228821]
[1760173544286,3.065e-05,111780.0,111770.0,6.70297073]
[1760173544453,0.51883083,111840.0,111820.0,0.17884844]
[1760173544804,0.51883083,111840.0,111830.0,0.16901]
[1760173545421,0.51883083,111840.0,111830.0,0.0894]
[1760173545602,0.51883083,111840.0,111830.0,0.08953573]
[1760173545805,0.52232418,111840.0,111830.0,0.08953573]
[1760173546052,0.52232418,111840.0,111830.0,0.16914573]
[1760173546270,0.52232418,111840.0,111830.0,0.08953573]
[1760173546600,0.52232418,111840.0,111830.0,0.16914573]
[1760173547235,0.52232418,111840.0,111830.0,0.17214573]
[1760173548269,0.52232418,111840.0,111830.0,0.09253573]
[1760173549181,0.67998418,111840.0,111830.0,0.00313573]
[1760173550223,0.60392418,111840.0,111830.0,0.05633573]
[1760173550430,0.52232418,111840.0,111830.0,0.17214573]
[1760173550810,0.52232418,111840.0,111830.0,0.09253573]
[1760173551623,0.52232024,111840.0,111830.0,0.17214573]
[1760173552666,0.52232024,111840.0,111830.0,0.09253573]
[1760173553017,0.68009024,111840.0,111830.0,0.00313573]
[1760173553182,0.18232024,111840.0,111830.0,0.09253573]
[1760173553386,0.18232024,111840.0,111830.0,0.17214573]
[1760173553593,0.33998024,111840.0,111830.0,0.00313573]
[1760173557251,0.67998024,111840.0,111830.0,0.00313573]
[1760173557908,0.68098024,111840.0,111830.0,0.00313573]
[1760173558355,0.71113214,111840.0,111830.0,0.00313573]
[1760173558580,0.71580762,111840.0,111830.0,0.00013573]
[1760173558798,0.71580762,111840.0,111830.0,1e-08]
[1760173558799,0.74080761,111840.0,111830.0,1e-08]
[1760173559011,0.51890687,111790.0,111780.0,0.07162362]
[1760173559234,0.61223687,111790.0,111780.0,0.07177501]
[1760173559459,0.68781687,111790.0,111780.0,0.07177501]
[1760173559971,0.61223687,111790.0,111780.0,0.07177501]
[1760173560462,0.51876443,111790.0,111780.0,0.08721139]
[1760173560702,0.51876443,111790.0,111780.0,0.16986139]
[1760173560940,0.68766443,111790.0,111780.0,0.00015139]
[1760173561186,0.51876443,111790.0,111780.0,0.16986139]
[1760173561427,0.1788804,111810.0,111790.0,0.18785131]
[1760173561669,0.34,111800.0,111790.0,0.22340131]
[1760173561905,0.22625717,111820.0,111790.0,0.22340131]
[1760173561906,0.22625717,111820.0,111800.0,0.17887732]
[1760173562210,0.17885888,111820.0,111810.0,0.34825487]
[1760173562414,0.18784644,111830.0,111820.0,0.17885888]
[1760173562632,0.17884288,111830.0,111820.0,0.05992]
[1760173562849,0.51884288,111830.0,111820.0,0.05992]
[1760173563303,0.27416288,111830.0,111820.0,0.05992]
[1760173563516,0.17885888,111820.0,111810.0,0.03587]
[1760173563740,0.17885888,111820.0,111810.0,0.29739487]
[1760173563956,0.17893358,111830.0,111820.0,0.05992]
[1760173564181,0.55990358,111830.0,111820.0,0.00906]
[1760173564399,0.55990358,111830.0,111820.0,0.05992]
[1760173564648,0.51893358,111830.0,111820.0,0.05992]
[1760173564877,0.52184496,111830.0,111820.0,0.05992]
[1760173565125,0.51885888,111820.0,111810.0,0.06735529]
[1760173565322,0.57320888,111820.0,111810.0,0.03148529]
[1760173565526,0.17887487,111810.0,111800.0,0.06735529]
[1760173565741,0.21984487,111810.0,111800.0,0.16735524]
[1760173565999,0.27419487,111810.0,111800.0,0.34624611]
[1760173566225,0.04097,111810.0,111800.0,0.39710611]
[1760173566472,0.34,111820.0,111810.0,0.18187487]
[1760173566685,0.34,111820.0,111810.0,0.38292116]
[1760173566917,0.34,111820.0,111810.0,0.37992116]
[1760173567137,0.3400907,111830.0,111820.0,0.17885888]
[1760173567347,0.3400907,111830.0,111820.0,0.27044517]
[1760173567567,0.3400907,111830.0,111820.0,0.35309517]
[1760173567781,0.3400907,111830.0,111820.0,0.27044517]
[1760173567994,0.3400907,111830.0,111820.0,0.35309517]
[1760173568461,0.61425358,111830.0,111820.0,0.04072629]
[1760173568702,0.61425358,111830.0,111810.0,0.06753629]
[1760173568703,0.17885888,111820.0,111810.0,0.06753629]
[1760173568934,0.29622888,111820.0,111800.0,0.29365422]
[1760173569168,0.29622888,111820.0,111810.0,0.03166629]
[1760173569631,0.27417888,111820.0,111810.0,0.03166629]
[1760173569885,0.35057888,111820.0,111810.0,0.03166629]
[1760173570130,0.35057888,111820.0,111810.0,0.03466629]
[1760173570362,0.27417888,111820.0,111810.0,0.03466629]
[1760173570561,9.07e-05,111830.0,111820.0,0.17885888]
[1760173570769,0.17893358,111830.0,111820.0,0.17427806]
[1760173570971,9.07e-05,111830.0,111820.0,0.09162806]
[1760173571188,0.51893358,111830.0,111820.0,0.09162806]
[1760173571396,0.52184496,111830.0,111820.0,0.36865682]
[1760173571599,0.52184496,111830.0,111820.0,0.18979794]
[1760173571772,0.52184496,111830.0,111820.0,0.28600682]
[1760173572080,0.34300208,111830.0,111820.0,0.37165682]
[1760173572243,0.52184496,111830.0,111820.0,0.37165682]
[1760173572436,0.00300208,111830.0,111820.0,0.37165682]
[1760173572652,0.00300208,111830.0,111820.0,0.32442888]
[1760173575153,0.00300208,111830.0,111820.0,0.35458078]
[1760173575353,0.00300208,111830.0,111820.0,0.41755137]
[1760173575561,0.00300208,111830.0,111820.0,0.51755132]
[1760173575738,0.00300208,111830.0,111820.0,0.45458073]
[1760173576150,0.00300208,111830.0,111820.0,0.53029397]
[1760173576541,0.00300208,111830.0,111820.0,0.93029397]
[1760173576949,0.00300208,111830.0,111820.0,1.04482348]
[1760173577339,8.68e-05,111830.0,111820.0,1.06611023]
[1760173577549,8.68e-05,111830.0,111820.0,1.1793805]
[1760173577976,8.68e-05,111830.0,111820.0,1.07938051]
[1760173578237,8.68e-05,111830.0,111820.0,1.1763805]
[1760173578471,8.68e-05,111830.0,111820.0,1.07111023]
[1760173578677,8.68e-05,111830.0,111820.0,1.07011023]
[1760173578833,8.68e-05,111830.0,111820.0,1.07111023]
[1760173579030,8.68e-05,111830.0,111820.0,1.41111023]
[1760173579239,8.68e-05,111830.0,111820.0,1.5213805]
[1760173581664,8.68e-05,111830.0,111820.0,1.46506098]
[1760173582024,8.68e-05,111830.0,111820.0,1.37037955]
[1760173582579,8.68e-05,111830.0,111820.0,1.40053145]
[1760173583583,0.21976492,111860.0,111850.0,0.1788041]
[1760173583793,0.17879492,111860.0,111850.0,0.34278254]
[1760173584202,0.22850768,111870.0,111850.0,0.37806431]
[1760173584409,0.22850768,111870.0,111860.0,0.00906]
[1760173584889,0.28285768,111870.0,111860.0,0.00906]
[1760173586365,0.36180768,111870.0,111850.0,0.24456111]
[1760173586566,0.28285768,111870.0,111860.0,0.06511]
[1760173586998,0.28285768,111870.0,111860.0,0.003]
[1760173587228,0.17879492,111860.0,111850.0,0.24456108]
[1760173587432,0.17879492,111860.0,111850.0,0.11880021]
[1760173587619,0.17879492,111860.0,111850.0,0.12180021]
[1760173588227,0.17879492,111860.0,111850.0,0.37760111]
[1760173588429,0.17879492,111860.0,111850.0,0.47760106]
[1760173588605,0.17879492,111860.0,111850.0,0.48060106]
[1760173589215,0.1805409,111860.0,111850.0,0.52796929]
[1760173589739,0.1805409,111860.0,111850.0,0.34915839]
[1760173589955,0.1805409,111860.0,111850.0,0.52796929]
[1760173591029,0.1805409,111860.0,111850.0,0.34915839]
[1760173591241,0.1805409,111860.0,111850.0,0.26916839]
[1760173591455,0.2312109,111860.0,111850.0,0.26916839]
[1760173591662,0.2312109,111860.0,111850.0,0.22180016]
[1760173591871,0.2691109,111860.0,111850.0,0.22180016]
[1760173592078,0.1805409,111860.0,111850.0,0.30179016]
[1760173592280,0.2312109,111860.0,111850.0,0.22180016]
[1760173592568,0.00174598,111860.0,111850.0,0.52796929]
[1760173593436,0.00174598,111860.0,111850.0,0.49639047]
[1760173593905,0.55590812,111880.0,111860.0,0.17878116]
[1760173594121,0.55590812,111880.0,111870.0,0.02247]
[1760173594325,0.22944893,111870.0,111860.0,0.05407587]
[1760173594526,0.17877893,111870.0,111860.0,0.05407587]
[1760173594680,0.17877893,111870.0,111860.0,0.36591079]
[1760173594884,0.22867354,111880.0,111860.0,0.36591079]
[1760173595084,0.22867354,111880.0,111870.0,0.02247]
[1760173595284,0.27934354,111880.0,111870.0,0.07552]
[1760173595716,0.35829354,111880.0,111870.0,0.02247]
[1760173595887,0.51877893,111870.0,111860.0,0.23587079]
[1760173596095,0.34,111870.0,111860.0,0.36891079]
[1760173596479,0.21971966,111890.0,111870.0,0.17877893]
[1760173596686,0.30459441,111900.0,111890.0,0.17874698]
[1760173596687,0.18774441,111900.0,111890.0,0.17874698]
[1760173596909,0.21682716,111910.0,111890.0,0.37741285]
[1760173597124,0.21682716,111910.0,111900.0,0.02247]
[1760173597317,0.0381,111910.0,111900.0,0.254251]
[1760173597536,0.0002,111910.0,111900.0,0.334241]
[1760173597742,0.00070581,111910.0,111900.0,0.334241]
[1760173598204,0.00070581,111910.0,111900.0,0.36584687]
[1760173598380,0.17870458,111920.0,111900.0,0.334241]
[1760173598612,0.17870458,111920.0,111910.0,0.02917]
[1760173598819,0.51870458,111920.0,111910.0,0.08222]
[1760173599164,0.51870458,111920.0,111910.0,0.07951458]
[1760173599369,0.60727458,111920.0,111910.0,0.02646458]
[1760173599543,0.51871503,111910.0,111900.0,0.05722726]
[1760173599746,0.51871503,111910.0,111900.0,0.20435239]
[1760173599956,0.51871503,111910.0,111900.0,0.25417239]
[1760173600154,0.34,111910.0,111900.0,0.36482826]
[1760173600590,0.51871503,111910.0,111900.0,0.36182826]
[1760173600792,0.34,111910.0,111900.0,0.36182826]
[1760173600998,0.51871503,111910.0,111900.0,0.28577826]
[1760173601201,0.51871503,111910.0,111900.0,0.36482826]
[1760173601401,0.51871503,111910.0,111900.0,0.18609726]
[1760173601602,0.51871503,111910.0,111900.0,0.36182826]
[1760173601796,0.51871503,111910.0,111900.0,0.36482826]
[1760173602980,0.51871503,111910.0,111900.0,0.18609726]
[1760173605151,0.60994503,111910.0,111900.0,0.05722726]
[1760173605360,0.60994503,111910.0,111900.0,0.02562139]
[1760173605632,0.60994503,111910.0,111900.0,0.07544139]
[1760173605633,0.61285329,111910.0,111900.0,0.07544139]
[1760173605834,0.69506329,111910.0,111900.0,0.00315139]
[1760173606788,0.61285329,111910.0,111900.0,0.05297139]
[1760173607003,0.61285329,111910.0,111900.0,0.00315139]
[1760173607855,0.69506329,111910.0,111900.0,0.00315139]
[1760173608390,0.69506329,111910.0,111900.0,0.03475726]
[1760173609660,0.69506329,111910.0,111900.0,0.00315139]
[1760173611171,0.61285329,111910.0,111900.0,0.07478139]
[1760173611650,0.27285329,111910.0,111900.0,0.07478139]
[1760173611859,0.18162329,111910.0,111900.0,0.07478139]
[1760173612073,0.23273329,111910.0,111900.0,0.07478139]
[1760173612283,0.35506329,111910.0,111900.0,0.00315139]
[1760173612732,0.27285329,111910.0,111900.0,0.00315139]
[1760173613178,0.27285329,111910.0,111900.0,0.05297139]
[1760173613398,0.27285329,111910.0,111900.0,0.07478139]
[1760173614049,0.18114969,111910.0,111900.0,0.15383139]
[1760173614267,0.00243466,111910.0,111900.0,0.25351239]
[1760173614473,0.00243466,111910.0,111900.0,0.83432011]
[1760173614683,0.00243466,111910.0,111900.0,0.87696186]
[1760173615977,0.17868509,111930.0,111920.0,0.17869907]
[1760173616191,0.22560361,111940.0,111920.0,0.21671907]
[1760173616363,0.22560361,111940.0,111930.0,0.08778]
[1760173616788,0.22560361,111940.0,111930.0,0.03759]
[1760173616997,0.27844361,111940.0,111930.0,0.03759]
[1760173617175,0.27844361,111940.0,111930.0,0.08778]
[1760173617568,0.1786831,111930.0,111920.0,0.21671907]
[1760173617789,0.1786831,111930.0,111920.0,0.26690907]
[1760173618063,0.2707131,111930.0,111920.0,0.08821]
[1760173618263,0.17869907,111920.0,111910.0,0.24829204]
[1760173618466,0.17869907,111920.0,111910.0,0.39848199]
[1760173618837,0.27072907,111920.0,111910.0,0.09999995]
[1760173619042,0.61072907,111920.0,111910.0,0.09999995]
[1760173619231,0.17871503,111910.0,111900.0,0.00015139]
[1760173619603,0.21790503,111910.0,111900.0,0.00015139]